lending/lending_fUSD_20240723
["ID","MTS","AMOUNT","RATE_DAILY","PERIOD"]
[332980656,1721719982995,1637.79,8.219e-05,2]
[332980657,1721720178577,170.37,8.219e-05,2]
[332980658,1721720472075,18191.84,4.781e-05,7]
[332980659,1721720472098,1808.16,4.781e-05,7]
[332980662,1721720529061,18219.84,5.795e-05,2]
[332980663,1721720529082,1448.20883904,5.795e-05,2]
[332980793,1721720537534,18551.79116096,4.781e-05,7]
[332980795,1721720537556,1448.20883904,4.781e-05,7]
[332980931,1721720586073,7383.37517479,5.795e-05,2]
[332980933,1721720593713,1555.9,8.219e-05,2]
[332980949,1721720731740,20000.0,4.781e-05,7]
[332980950,1721720731761,20000.0,4.781e-05,7]
[332980962,1721720800547,947.25112385,5.795e-05,2]
[332980963,1721720821132,212.98564907,5.795e-05,2]
[332980964,1721720845712,947.25112385,7.024e-05,2]
[332980967,1721720910827,995.70593575,8.514e-05,2]
[332980974,1721720981908,20000.0,4.781e-05,7]
[332980975,1721720981929,9761.0656771,4.781e-05,7]
[332980977,1721721006526,155.0,5.795e-05,2]
[332980985,1721721031567,-265.647482,9.678e-05,2]
[332980986,1721721031576,-300.0,9.727e-05,2]
[332980987,1721721031587,-252.72893978,9.727e-05,2]
[332980988,1721721031597,-381.62357822,9.728e-05,2]
[332980989,1721721031616,-463.9638686,9.728e-05,2]
[332980990,1721721031725,-1086.53260815,9.728e-05,2]
[332981019,1721721037567,-2611.44251202,9.728e-05,2]
[332981020,1721721037623,-474.75933617,9.728e-05,2]
[332981021,1721721037635,-378.99351477,9.728e-05,2]
[332981022,1721721037647,-280.407,9.728e-05,2]
[332981023,1721721037658,-1001.32775021,9.728e-05,2]
[332981024,1721721037687,-17210.94983186,9.728e-05,2]
[332981025,1721721037696,-500.0,9.765e-05,2]
[332981026,1721721037706,-796.69,9.769e-05,2]
[332981027,1721721037715,-1081.18,9.777e-05,2]
[332981028,1721721037724,-320.0,9.803e-05,2]
[332981029,1721721037734,-2774.99,9.842e-05,2]
[332981030,1721721037743,-250.0,9.904e-05,2]
[332981031,1721721037753,-680.0,9.965e-05,2]
[332981032,1721721037763,-534.9197,0.0001016,2]
[332981033,1721721037772,-150.0,0.00010258,2]
[332981034,1721721037782,-1479.85,0.00010259,2]
[332981035,1721721037792,-299.99,0.00010259,2]
[332981036,1721721037801,-4932.60264559,0.00010259,2]
[332981037,1721721037818,-347.9736861,0.00010259,2]
[332981038,1721721037830,-888.51999758,0.00010259,2]
[332981039,1721721037850,-6819.46367073,0.00010259,2]
[332981040,1721721037860,-150.99,0.00010259,2]
[332981041,1721721037870,-1955.44,0.00010259,2]
[332981042,1721721037880,-2631.03,0.00010259,2]
[332981043,1721721037890,-150.99,0.00010259,2]
[332981044,1721721037899,-900.0,0.0001026,2]
[332981045,1721721037909,-483.67073812,0.0001026,2]
[332981046,1721721037923,-1416.32926188,0.0001026,2]
[332981047,1721721037933,-1300.0,0.0001026,2]
[332981049,1721721037943,-499.99,0.0001026,2]
[332981051,1721721037952,-999.99,0.0001026,2]
[332981052,1721721037962,-1100.0,0.0001026,2]
[332981053,1721721037972,-228.74,0.00010321,2]
[332981054,1721721037981,-178.44,0.00010405,2]
[332981055,1721721037991,-7762.77513982,0.00010415,2]
[332981056,1721721038001,-1555.9,0.00010468,2]
[332981057,1721721038011,-420.0,0.00010699,2]
[332981058,1721721038021,-150.0,0.00010751,2]
[332981059,1721721038031,-151.76,0.00010751,2]
[332981060,1721721038040,-150.0,0.00010752,2]
[332981061,1721721038050,-212.0,0.0001077,2]
[332981062,1721721038060,-245.222,0.000109,2]
[332981063,1721721038069,-212.0,0.0001095,2]
[332981064,1721721038078,-1335.96,0.00010958,2]
[332981065,1721721038088,-500.0,0.00010958,2]
[332981066,1721721038097,-500.0,0.00010958,2]
[332981067,1721721038107,-500.0,0.00010958,2]
[332981068,1721721038116,-500.0,0.00010958,2]
[332981069,1721721038126,-500.0,0.00010958,2]
[332981070,1721721038135,-859.54,0.00010958,2]
[332981071,1721721038146,-500.0,0.00010958,2]
[332981072,1721721038155,-500.0,0.00010958,2]
[332981073,1721721038164,-500.0,0.00010958,2]
[332981074,1721721038174,-500.0,0.00010958,2]
[332981075,1721721038183,-500.0,0.00010958,2]
[332981076,1721721038248,-500.0,0.00010958,2]
[332981077,1721721038258,-681.79,0.00010958,2]
[332981078,1721721038267,-500.0,0.00010958,2]
[332981079,1721721038276,-500.0,0.00010958,2]
[332981080,1721721038285,-204.61171085,0.00010958,2]
[332981081,1721721038294,-2239.07,0.00010958,2]
[332981082,1721721038303,-737.33,0.00010958,2]
[332981083,1721721038314,-1538.33,0.00010958,2]
[332981084,1721721038323,-554.07856481,0.00010958,2]
[332981085,1721721038332,-500.0,0.00010958,2]
[332981086,1721721038341,-500.0,0.00010958,2]
[332981087,1721721038350,-500.0,0.00010958,2]
[332981088,1721721038359,-500.0,0.00010958,2]
[332981089,1721721038368,-1860.09,0.00010958,2]
[332981090,1721721038377,-250.0,0.00010959,2]
[332981091,1721721038388,-150.0,0.00010959,2]
[332981092,1721721038397,-18345.345,0.00010966,2]
[332981093,1721721038406,-5828.0,0.00010966,2]
[332981094,1721721038416,-3881.567,0.00010966,2]
[332981095,1721721038425,-22256.5951953,0.00010997,2]
[332981096,1721721038434,-171.27160649,0.00010997,2]
[332981097,1721721038443,-2848.6490118,0.00010998,2]
[332981098,1721721038452,-20588.6294928,0.00010998,2]
[332981099,1721721038462,-164.4564028,0.00010998,2]
[332981100,1721721038471,-374.55068035,0.00010998,2]
[332981101,1721721038481,-500.0,0.00010998,2]
[332981102,1721721038490,-500.0,0.00010998,2]
[332981103,1721721038499,-500.0,0.00010998,2]
[332981104,1721721038509,-1335.96,0.00010998,2]
[332981105,1721721038518,-500.0,0.00010998,2]
[332981106,1721721038527,-500.0,0.00010998,2]
[332981107,1721721038536,-500.0,0.00010998,2]
[332981108,1721721038545,-500.0,0.00010998,2]
[332981109,1721721038559,-500.0,0.00010998,2]
[332981110,1721721038568,-500.0,0.00010998,2]
[332981111,1721721038577,-500.0,0.00010998,2]
[332981112,1721721038586,-225.33329991,0.00010998,2]
[332981113,1721721038596,-194.88326262,0.00010998,2]
[332981114,1721721038605,-500.0,0.00010998,2]
[332981115,1721721038614,-500.0,0.00010998,2]
[332981116,1721721038625,-859.54,0.00010998,2]
[332981117,1721721038636,-500.0,0.00010998,2]
[332981118,1721721038646,-500.0,0.00010998,2]
[332981119,1721721038656,-500.0,0.00010998,2]
[332981120,1721721038666,-500.0,0.00010998,2]
[332981121,1721721038676,-500.0,0.00010998,2]
[332981122,1721721038685,-500.0,0.00010998,2]
[332981123,1721721038694,-681.79,0.00010998,2]
[332981124,1721721038703,-500.0,0.00010998,2]
[332981125,1721721038712,-500.0,0.00010998,2]
[332981126,1721721038723,-500.0,0.00010998,2]
[332981127,1721721038732,-649.33998202,0.00010998,2]
[332981128,1721721038742,-500.0,0.00010998,2]
[332981129,1721721038753,-500.0,0.00010998,2]
[332981130,1721721038763,-2239.07,0.00010998,2]
[332981131,1721721038772,-737.33,0.00010998,2]
[332981132,1721721038782,-1538.33,0.00010998,2]
[332981133,1721721038791,-500.0,0.00010998,2]
[332981134,1721721038801,-500.0,0.00010998,2]
[332981135,1721721038810,-500.0,0.00010998,2]
[332981136,1721721038819,-500.0,0.00010998,2]
[332981137,1721721038829,-1860.09,0.00010998,2]
[332981138,1721721038838,-500.0,0.00010998,2]
[332981139,1721721038847,-500.0,0.00010998,2]
[332981140,1721721038856,-500.0,0.00010998,2]
[332981141,1721721038865,-516.95,0.00010998,2]
[332981142,1721721038875,-500.0,0.00010999,2]
[332981143,1721721038885,-500.0,0.00010999,2]
[332981144,1721721038895,-246.54965762,0.00010999,2]
[332981145,1721721038905,-256.54690706,0.00010999,2]
[332981146,1721721038914,-500.0,0.00010999,2]
[332981147,1721721038923,-1335.96,0.00010999,2]
[332981148,1721721038933,-1335.96,0.00010999,2]
[332981149,1721721038942,-1335.96,0.00010999,2]
[332981150,1721721038951,-1335.96,0.00010999,2]
[332981151,1721721038960,-1335.96,0.00010999,2]
[332981152,1721721038970,-1335.96,0.00010999,2]
[332981153,1721721038979,-1335.96,0.00010999,2]
[332981154,1721721038988,-1335.96,0.00010999,2]
[332981155,1721721038997,-500.0,0.00010999,2]
[332981156,1721721039007,-1335.96,0.00010999,2]
[332981157,1721721039016,-1335.96,0.00010999,2]
[332981158,1721721039026,-1335.96,0.00010999,2]
[332981159,1721721039035,-1335.96,0.00010999,2]
[332981160,1721721039044,-1335.96,0.00010999,2]
[332981161,1721721039053,-500.0,0.00010999,2]
[332981162,1721721039062,-585.93143082,0.00010999,2]
[332981163,1721721039072,-500.0,0.00010999,2]
[332981164,1721721039081,-500.0,0.00010999,2]
[332981165,1721721039090,-500.0,0.00010999,2]
[332981166,1721721039099,-500.0,0.00010999,2]
[332981167,1721721039108,-500.0,0.00010999,2]
[332981168,1721721039117,-500.0,0.00010999,2]
[332981169,1721721039127,-500.0,0.00010999,2]
[332981170,1721721039137,-500.0,0.00010999,2]
[332981171,1721721039146,-504.06972575,0.00010999,2]
[332981172,1721721039155,-500.0,0.00010999,2]
[332981173,1721721039165,-500.0,0.00010999,2]
[332981174,1721721039174,-500.0,0.00010999,2]
[332981175,1721721039184,-344.37650461,0.00010999,2]
[332981176,1721721039193,-500.0,0.00010999,2]
[332981177,1721721039202,-500.0,0.00010999,2]
[332981178,1721721039211,-500.0,0.00010999,2]
[332981179,1721721039220,-500.0,0.00010999,2]
[332981180,1721721039229,-593.28916541,0.00010999,2]
[332981181,1721721039238,-500.0,0.00010999,2]
[332981182,1721721039247,-500.0,0.00010999,2]
[332981183,1721721039256,-500.0,0.00010999,2]
[332981184,1721721039265,-500.0,0.00010999,2]
[332981185,1721721039274,-500.0,0.00010999,2]
[332981186,1721721039283,-500.0,0.00010999,2]
[332981187,1721721039292,-500.0,0.00010999,2]
[332981188,1721721039301,-500.0,0.00010999,2]
[332981189,1721721039310,-500.0,0.00010999,2]
[332981190,1721721039319,-480.27747902,0.00010999,2]
[332981191,1721721039328,-500.0,0.00010999,2]
[332981192,1721721039337,-500.0,0.00010999,2]
[332981193,1721721039346,-500.0,0.00010999,2]
[332981194,1721721039355,-500.0,0.00010999,2]
[332981195,1721721039365,-500.0,0.00010999,2]
[332981196,1721721039374,-500.0,0.00010999,2]
[332981197,1721721039383,-500.0,0.00010999,2]
[332981198,1721721039393,-500.0,0.00010999,2]
[332981199,1721721039402,-500.0,0.00010999,2]
[332981200,1721721039411,-500.0,0.00010999,2]
[332981201,1721721039420,-500.0,0.00010999,2]
[332981202,1721721039428,-500.0,0.00010999,2]
[332981203,1721721039438,-500.0,0.00010999,2]
[332981204,1721721039447,-500.0,0.00010999,2]
[332981205,1721721039456,-500.0,0.00010999,2]
[332981206,1721721039465,-500.0,0.00010999,2]
[332981207,1721721039475,-500.0,0.00010999,2]
[332981208,1721721039484,-500.0,0.00010999,2]
[332981209,1721721039493,-500.0,0.00010999,2]
[332981210,1721721039502,-500.0,0.00010999,2]
[332981211,1721721039511,-500.0,0.00010999,2]
[332981212,1721721039520,-500.0,0.00010999,2]
[332981213,1721721039530,-500.0,0.00010999,2]
[332981214,1721721039539,-500.0,0.00010999,2]
[332981215,1721721039551,-500.0,0.00010999,2]
[332981216,1721721039562,-500.0,0.00010999,2]
[332981217,1721721039572,-500.0,0.00010999,2]
[332981218,1721721039582,-500.0,0.00010999,2]
[332981219,1721721039593,-500.0,0.00010999,2]
[332981220,1721721039603,-460.43657359,0.00010999,2]
[332981221,1721721039613,-859.54,0.00010999,2]
[332981222,1721721039624,-859.54,0.00010999,2]
[332981223,1721721039636,-859.54,0.00010999,2]
[332981224,1721721039646,-859.54,0.00010999,2]
[332981225,1721721039655,-859.54,0.00010999,2]
[332981226,1721721039664,-859.54,0.00010999,2]
[332981227,1721721039673,-859.54,0.00010999,2]
[332981228,1721721039683,-859.54,0.00010999,2]
[332981229,1721721039691,-859.54,0.00010999,2]
[332981230,1721721039700,-859.54,0.00010999,2]
[332981231,1721721039710,-859.54,0.00010999,2]
[332981232,1721721039719,-500.0,0.00010999,2]
[332981233,1721721039729,-859.54,0.00010999,2]
[332981234,1721721039738,-500.0,0.00010999,2]
[332981235,1721721039747,-500.0,0.00010999,2]
[332981236,1721721039756,-500.0,0.00010999,2]
[332981237,1721721039765,-500.0,0.00010999,2]
[332981238,1721721039774,-500.0,0.00010999,2]
[332981239,1721721039783,-500.0,0.00010999,2]
[332981240,1721721039792,-164.10129022,0.00010999,2]
[332981241,1721721039801,-500.0,0.00010999,2]
[332981242,1721721039810,-500.0,0.00010999,2]
[332981243,1721721039819,-500.0,0.00010999,2]
[332981244,1721721039828,-500.0,0.00010999,2]
[332981245,1721721039837,-500.0,0.00010999,2]
[332981246,1721721039846,-500.0,0.00010999,2]
[332981247,1721721039855,-500.0,0.00010999,2]
[332981248,1721721039865,-500.0,0.00010999,2]
[332981249,1721721039874,-497.04824454,0.00010999,2]
[332981250,1721721039882,-395.48736336,0.00010999,2]
[332981251,1721721039892,-500.0,0.00010999,2]
[332981252,1721721039902,-500.0,0.00010999,2]
[332981253,1721721039914,-500.0,0.00010999,2]
[332981254,1721721039923,-500.0,0.00010999,2]
[332981255,1721721039932,-500.0,0.00010999,2]
[332981256,1721721039942,-500.0,0.00010999,2]
[332981257,1721721039951,-173.32514282,0.00010999,2]
[332981258,1721721039960,-681.79,0.00010999,2]
[332981259,1721721039969,-681.79,0.00010999,2]
[332981260,1721721039978,-681.79,0.00010999,2]
[332981261,1721721039987,-681.79,0.00010999,2]
[332981262,1721721039997,-681.79,0.00010999,2]
[332981263,1721721040006,-681.79,0.00010999,2]
[332981264,1721721040015,-681.79,0.00010999,2]
[332981265,1721721040024,-681.79,0.00010999,2]
[332981266,1721721040033,-681.79,0.00010999,2]
[332981267,1721721040043,-681.79,0.00010999,2]
[332981268,1721721040052,-681.79,0.00010999,2]
[332981269,1721721040061,-681.79,0.00010999,2]
[332981270,1721721040070,-500.0,0.00010999,2]
[332981271,1721721040079,-500.0,0.00010999,2]
[332981272,1721721040088,-500.0,0.00010999,2]
[332981273,1721721040097,-500.0,0.00010999,2]
[332981274,1721721040107,-507.44212456,0.00010999,2]
[332981275,1721721040116,-500.0,0.00010999,2]
[332981276,1721721040125,-500.0,0.00010999,2]
[332981277,1721721040135,-500.0,0.00010999,2]
[332981278,1721721040144,-500.0,0.00010999,2]
[332981279,1721721040153,-187.67393828,0.00010999,2]
[332981280,1721721040163,-500.0,0.00010999,2]
[332981281,1721721040171,-500.0,0.00010999,2]
[332981282,1721721040180,-500.0,0.00010999,2]
[332981283,1721721040189,-500.0,0.00010999,2]
[332981284,1721721040198,-500.0,0.00010999,2]
[332981285,1721721040207,-500.0,0.00010999,2]
[332981286,1721721040216,-2239.07,0.00010999,2]
[332981287,1721721040225,-2239.07,0.00010999,2]
[332981288,1721721040235,-2239.07,0.00010999,2]
[332981289,1721721040244,-2239.07,0.00010999,2]
[332981290,1721721040253,-2239.07,0.00010999,2]
[332981291,1721721040263,-2239.07,0.00010999,2]
[332981292,1721721040272,-2239.07,0.00010999,2]
[332981293,1721721040281,-2239.07,0.00010999,2]
[332981294,1721721040291,-2239.07,0.00010999,2]
[332981295,1721721040299,-2239.07,0.00010999,2]
[332981296,1721721040309,-2239.07,0.00010999,2]
[332981297,1721721040318,-2239.07,0.00010999,2]
[332981298,1721721040327,-737.33,0.00010999,2]
[332981299,1721721040336,-737.33,0.00010999,2]
[332981300,1721721040345,-737.33,0.00010999,2]
[332981301,1721721040355,-737.33,0.00010999,2]
[332981302,1721721040364,-737.33,0.00010999,2]
[332981303,1721721040373,-737.33,0.00010999,2]
[332981304,1721721040382,-737.33,0.00010999,2]
[332981305,1721721040392,-737.33,0.00010999,2]
[332981306,1721721040401,-737.33,0.00010999,2]
[332981308,1721721040410,-737.33,0.00010999,2]
[332981310,1721721040419,-737.33,0.00010999,2]
[332981311,1721721040428,-737.33,0.00010999,2]
[332981313,1721721040437,-1538.33,0.00010999,2]
[332981315,1721721040447,-1538.33,0.00010999,2]
[332981317,1721721040456,-1538.33,0.00010999,2]
[332981319,1721721040466,-1538.33,0.00010999,2]
[332981321,1721721040475,-1538.33,0.00010999,2]
[332981323,1721721040484,-1538.33,0.00010999,2]
[332981325,1721721040492,-1538.33,0.00010999,2]
[332981326,1721721040501,-1538.33,0.00010999,2]
[332981328,1721721040510,-1538.33,0.00010999,2]
[332981330,1721721040519,-1538.33,0.00010999,2]
[332981332,1721721040528,-1538.33,0.00010999,2]
[332981334,1721721040537,-1538.33,0.00010999,2]
[332981336,1721721040546,-500.0,0.00010999,2]
[332981338,1721721040559,-500.0,0.00010999,2]
[332981339,1721721040568,-500.0,0.00010999,2]
[332981342,1721721040579,-500.0,0.00010999,2]
[332981343,1721721040588,-500.0,0.00010999,2]
[332981345,1721721040599,-500.0,0.00010999,2]
[332981348,1721721040608,-500.0,0.00010999,2]
[332981350,1721721040618,-500.0,0.00010999,2]
[332981352,1721721040626,-500.0,0.00010999,2]
[332981353,1721721040638,-500.0,0.00010999,2]
[332981355,1721721040647,-500.0,0.00010999,2]
[332981357,1721721040656,-500.0,0.00010999,2]
[332981359,1721721040665,-500.0,0.00010999,2]
[332981361,1721721040675,-500.0,0.00010999,2]
[332981363,1721721040683,-500.0,0.00010999,2]
[332981365,1721721040692,-500.0,0.00010999,2]
[332981367,1721721040701,-500.0,0.00010999,2]
[332981369,1721721040710,-500.0,0.00010999,2]
[332981371,1721721040719,-500.0,0.00010999,2]
[332981373,1721721040727,-500.0,0.00010999,2]
[332981375,1721721040736,-500.0,0.00010999,2]
[332981377,1721721040746,-500.0,0.00010999,2]
[332981379,1721721040755,-500.0,0.00010999,2]
[332981381,1721721040764,-500.0,0.00010999,2]
[332981383,1721721040774,-500.0,0.00010999,2]
[332981385,1721721040783,-500.0,0.00010999,2]
[332981387,1721721040792,-500.0,0.00010999,2]
[332981389,1721721040801,-500.0,0.00010999,2]
[332981391,1721721040811,-500.0,0.00010999,2]
[332981394,1721721040822,-500.0,0.00010999,2]
[332981396,1721721040832,-500.0,0.00010999,2]
[332981398,1721721040842,-500.0,0.00010999,2]
[332981400,1721721040852,-543.4045346,0.00010999,2]
[332981402,1721721040862,-1860.09,0.00010999,2]
[332981404,1721721040870,-1860.09,0.00010999,2]
[332981406,1721721040880,-1860.09,0.00010999,2]
[332981408,1721721040889,-1860.09,0.00010999,2]
[332981410,1721721040898,-1860.09,0.00010999,2]
[332981412,1721721040907,-1860.09,0.00010999,2]
[332981414,1721721040916,-1860.09,0.00010999,2]
[332981416,1721721040926,-1860.09,0.00010999,2]
[332981418,1721721040936,-1860.09,0.00010999,2]
[332981420,1721721040946,-1860.09,0.00010999,2]
[332981422,1721721040956,-1860.09,0.00010999,2]
[332981424,1721721040965,-1860.09,0.00010999,2]
[332981426,1721721040975,-1860.09,0.00010999,2]
[332981427,1721721040984,-500.0,0.00010999,2]
[332981429,1721721040994,-500.0,0.00010999,2]
[332981431,1721721041002,-500.0,0.00010999,2]
[332981433,1721721041012,-500.0,0.00010999,2]
[332981435,1721721041021,-516.95,0.00010999,2]
[332981437,1721721041031,-20591.66037556,0.00011,2]
[332981439,1721721041040,-2300.45095677,0.00011,2]
[332981441,1721721041049,-256193.59930616,0.00011,2]
[332981443,1721721041059,-2001.0,0.00011,2]
[332981445,1721721041067,-1049.03428357,0.00011,2]
[332981447,1721721041077,-2000.0,0.00011,2]
[332981449,1721721041086,-200.0,0.00011,2]
[332981451,1721721041095,-2000.0,0.00011,2]
[332981452,1721721041103,-200.0,0.00011,2]
[332981454,1721721041112,-1250.0,0.00011,2]
[332981456,1721721041121,-2000.0,0.00011,2]
[332981458,1721721041130,-200.0,0.00011,2]
[332981460,1721721041140,-3000.0,0.00011,2]
[332981462,1721721041149,-2000.0,0.00011,2]
[332981464,1721721041158,-200.0,0.00011,2]
[332981466,1721721041167,-1047.44850275,0.00011,2]
[332981468,1721721041175,-500.0,0.00011005,2]
[332981469,1721721041184,-500.0,0.00011005,2]
[332981471,1721721041194,-516.95,0.00011005,2]
[332981473,1721721041202,-6293.8548628,0.00011006,2]
[332981475,1721721041212,-1335.96,0.00011013,2]
[332981477,1721721041222,-500.0,0.00011013,2]
[332981479,1721721041232,-500.0,0.00011013,2]
[332981480,1721721041241,-859.54,0.00011013,2]
[332981482,1721721041251,-681.79,0.00011013,2]
[332981484,1721721041262,-2239.07,0.00011013,2]
[332981487,1721721041272,-737.33,0.00011013,2]
[332981489,1721721041282,-1538.33,0.00011013,2]
[332981490,1721721041291,-500.0,0.00011013,2]
[332981492,1721721041303,-500.0,0.00011013,2]
[332981494,1721721041314,-1860.09,0.00011013,2]
[332981496,1721721041324,-20088.0,0.00011013,2]
[332981498,1721721041334,-150.0,0.00011014,2]
[332981500,1721721041344,-150.0,0.00011014,2]
[332981502,1721721041355,-150.0,0.00011014,2]
[332981504,1721721041365,-150.0,0.00011014,2]
[332981506,1721721041374,-150.0,0.00011014,2]
[332981508,1721721041383,-150.0,0.00011014,2]
[332981510,1721721041392,-150.0,0.00011014,2]
[332981512,1721721041401,-150.0,0.00011014,2]
[332981514,1721721041411,-150.0,0.00011014,2]
[332981516,1721721041421,-150.0,0.00011014,2]
[332981518,1721721041431,-150.0,0.00011014,2]
[332981520,1721721041441,-150.0,0.00011014,2]
[332981522,1721721041451,-150.0,0.00011014,2]
[332981524,1721721041460,-150.0,0.00011014,2]
[332981526,1721721041469,-150.0,0.00011014,2]
[332981528,1721721041479,-150.0,0.00011014,2]
[332981529,1721721041488,-150.0,0.00011014,2]
[332981531,1721721041498,-150.0,0.00011014,2]
[332981533,1721721041508,-150.0,0.00011014,2]
[332981534,1721721041517,-320.0,0.00011029,2]
[332981535,1721721041526,-500.0,0.00011082,2]
[332981536,1721721041536,-900.0,0.00011082,2]
[332981537,1721721041545,-1900.0,0.00011082,2]
[332981538,1721721041559,-1300.0,0.00011082,2]
[332981539,1721721041568,-268.444,0.00011083,2]
[332981540,1721721041577,-150.0,0.000111,2]
[332981541,1721721041586,-150.0,0.000111,2]
[332981542,1721721041596,-150.0,0.000111,2]
[332981543,1721721041605,-150.0,0.000111,2]
[332981544,1721721041614,-150.0,0.000111,2]
[332981545,1721721041625,-225.0,0.000111,2]
[332981546,1721721041634,-952.9,0.000111,2]
[332981547,1721721041644,-500.0,0.00011104,2]
[332981549,1721721041654,-859.54,0.00011104,2]
[332981550,1721721041663,-681.79,0.00011104,2]
[332981551,1721721041672,-2239.07,0.00011104,2]
[332981553,1721721041681,-737.33,0.00011104,2]
[332981555,1721721041690,-1538.33,0.00011104,2]
[332981557,1721721041699,-208.31371598,0.00011105,2]
[332981559,1721721041708,-155.0,0.00011105,2]
[332981561,1721721041718,-218.46557785,0.00011105,2]
[332981563,1721721041727,-157.16213537,0.00011105,2]
[332981564,1721721041737,-8133.84289538,0.00011105,2]
[332981566,1721721041746,-254.76158442,0.00011105,2]
[332981568,1721721041755,-2143.51197414,0.00011105,2]
[332981570,1721721041766,-491.51691083,0.00011105,2]
[332981572,1721721041775,-271.01447801,0.00011105,2]
[332981574,1721721041786,-298.26312183,0.00011105,2]
[332981576,1721721041796,-1435.48036598,0.00011105,2]
[332981578,1721721041805,-2837.55930766,0.00011105,2]
[332981580,1721721041816,-202.63817161,0.00011105,2]
[332981582,1721721041827,-439.52750479,0.00011105,2]
[332981584,1721721041836,-371.51160251,0.00011105,2]
[332981586,1721721041846,-363.71380104,0.00011105,2]
[332981588,1721721041857,-155.0,0.00011105,2]
[332981590,1721721041866,-7090.84233167,0.00011105,2]
[332981592,1721721041875,-1073.31104613,0.00011105,2]
[332981594,1721721041885,-896.53528318,0.00011105,2]
[332981596,1721721041895,-955.85753929,0.00011105,2]
[332981598,1721721041905,-155.33174251,0.00011105,2]
[332981600,1721721041914,-211.07687847,0.00011105,2]
[332981602,1721721041923,-156.27921778,0.00011105,2]
[332981604,1721721041932,-164.08458093,0.00011105,2]
[332981606,1721721041941,-527.96649902,0.00011105,2]
[332981607,1721721041950,-159.39239164,0.00011105,2]
[332981609,1721721041960,-156.03816899,0.00011105,2]
[332981611,1721721041969,-155.21038156,0.00011105,2]
[332981613,1721721041978,-431.9273718,0.00011105,2]
[332981615,1721721041987,-316.33929512,0.00011105,2]
[332981617,1721721041996,-245.0,0.00011105,2]
[332981619,1721721042006,-200.0,0.00011105,2]
[332981621,1721721042016,-1137.01906995,0.00011105,2]
[332981623,1721721042025,-162.01144166,0.00011105,2]
[332981624,1721721042034,-1267.4192646,0.00011105,2]
[332981626,1721721042043,-1272.37337261,0.00011105,2]
[332981628,1721721042053,-242.8688521,0.00011105,2]
[332981630,1721721042062,-155.72385129,0.00011105,2]
[332981632,1721721042071,-329.44926346,0.00011105,2]
[332981634,1721721042080,-347.68317165,0.00011105,2]
[332981636,1721721042090,-5488.13854607,0.00011105,2]
[332981638,1721721042103,-224.29060506,0.00011105,2]
[332981640,1721721042112,-425.43694771,0.00011105,2]
[332981642,1721721042121,-196.37015947,0.00011105,2]
[332981644,1721721042130,-379.74976645,0.00011105,2]
[332981646,1721721042140,-155.0,0.00011105,2]
[332981648,1721721042149,-155.0,0.00011105,2]
[332981649,1721721042158,-235.82956703,0.00011105,2]
[332981651,1721721042168,-6699.60089959,0.00011105,2]
[332981653,1721721042177,-155.0,0.00011105,2]
[332981656,1721721042186,-155.0,0.00011105,2]
[332981660,1721721042195,-242.68954011,0.00011105,2]